[Event "Polish Youth Ekstraliga 2022"]
[Site "Lublin"]
[Date "2022.06.28"]
[Round "4.5"]
[White "Lochina, Justyna"]
[Black "Dylag, Emilia"]
[Result "0-1"]
[ECO "B87"]
[WhiteElo "1672"]
[BlackElo "2022"]
[Annotator "NA RC"]
[PlyCount "82"]
[EventDate "2022.06.24"]
[EventType "team-tourn"]
[EventCountry "POL"]
[SourceTitle "playchess.com"]
[Source "ChessBase"]
[SourceQuality "1"]
[TimeControl "40/5400+30:1800+30"]

1. e4 {[%emt 0:00:02]} c5 {[%emt 0:00:12]} 2. Nf3 {[%emt 0:00:09]} d6 {[%emt 0:00:05]} 3. d4 {[%emt 0:00:06]} cxd4 {[%emt 0:00:05]} 4. Nxd4 {[%emt 0:00:07]} Nf6 {[%emt 0:00:07]} 5. Nc3 {[%emt 0:00:09]} a6 {[%emt 0:00:07]} 6. Bc4 {[%emt 0:00:44]} e6 {[%emt 0:00:11]} 7. Bb3 {[%emt 0:00:19]} b5 {[%emt 0:00:14]} 8. O-O {[%emt 0:14:19]} Be7 {[%emt 0:00:14]} 9. f4 {[%emt 0:02:10]} O-O {[%emt 0:00:30]} 10. f5 {[%emt 0:02:10]} b4 {[%emt 0:00:16]} 11. Na4 {[%emt 0:01:18]} e5 {[%emt 0:00:16]} 12. Ne2 {[%emt 0:00:48]} Bb7 {[%emt 0:00:36]} 13. Ng3 {[%emt 0:11:33]} Nbd7 {[%emt 0:01:42]} ({Of course not} 13... Nxe4 14. Nxe4 Bxe4 15. Qg4 $11) 14. Re1 {[%emt 0:04:04]} Bc6 {[%emt 0:07:55]} 15. c3 {[%emt 0:04:41]} a5 {[%emt 0:02:27]} 16. Bg5 {[%emt 0:03:25]} h6 {[%emt 0:05:52]} 17. Bxf6 {[%emt 0:03:14]} Nxf6 {[%emt 0:00:12]} 18. Rc1 {[%emt 0:02:15]} Rc8 {[%emt 0:11:09]} 19. Nh5 {[%emt 0:06:13]} Nxh5 {[%emt 0:04:45]} ({Inferior is} 19... Nxe4 20. cxb4 Bxa4 21. Rxe4 Rxc1 22. Qxc1 Bxb3 23. axb3 $19) 20. Qxh5 {[%emt 0:00:26]} Bg5 {[%emt 0:00:48]} 21. Rb1 {[%emt 0:08:22]} ({White should play} 21. Ra1) 21... Qd7 {[%emt 0:10:00]} 22. Qd1 $1 {[%emt 0:01:16]} Qa7+ {[%emt 0:02:12]} 23. Kh1 {[%emt 0:00:44]} Qf2 {[%emt 0:11:02]} (23... Bh4 $5 {[%cal Rh4e1]} 24. g3 Bf6 $15) 24. Qe2 {[%emt 0:07:27]} Qxe2 {[%emt 0:09:41]} 25. Rxe2 {[%emt 0:00:10]} Bb5 $15 {[%emt 0:09:09]} 26. Ree1 {[%emt 0:06:17]} Rc6 {[%emt 0:01:33]} 27. Rbd1 {[%emt 0:02:46]} Rb8 {[%emt 0:03:18]} 28. Rd5 {[%emt 0:02:32]} Kf8 {[%emt 0:01:45]} 29. g3 {[%emt 0:03:45]} h5 {[%emt 0:00:59]} 30. Kg2 {[%emt 0:02:39]} Ke7 {[%emt 0:05:06]} 31. Red1 {[%emt 0:01:51]} g6 {[%emt 0:06:05]} 32. fxg6 {[%emt 0:02:59]} fxg6 {[%emt 0:00:03]} 33. c4 {[%emt 0:00:47]} Bxc4 {[%emt 0:01:44]} 34. Bxc4 {[%emt 0:01:21]} Rxc4 {[%emt 0:00:06]} 35. h4 {[%emt 0:02:12]} Be3 {[%emt 0:01:07]} 36. Rxd6 {[%emt 0:02:07]} Bd4 {[%emt 0:00:09]} 37. Rxg6 {[%emt 0:01:03]} b3 {[%emt 0:02:15]} 38. axb3 {[%emt 0:01:32]} Rxb3 {[%emt 0:00:07]} 39. Rxd4 {[%emt 0:01:14]} exd4 {[%emt 0:01:10]} 40. Nb6 {[%emt 0:00:00]} Rc2+ {[%emt 0:00:00]} 41. Kg1 {[%emt 0:01:08]} Kf7 {[%emt 0:01:24]} 0-1

[Event "Polish Youth Ekstraliga 2022"]
[Site "Lublin"]
[Date "2022.06.28"]
[Round "4.6"]
[White "Bandyk, Joanna"]
[Black "Smietanska, Wiktoria"]
[Result "0-1"]
[ECO "B10"]
[WhiteElo "1360"]
[BlackElo "1879"]
[Annotator "NA RC"]
[PlyCount "96"]
[EventDate "2022.06.24"]
[EventType "team-tourn"]
[EventCountry "POL"]
[SourceTitle "playchess.com"]
[Source "ChessBase"]
[SourceQuality "1"]
[TimeControl "40/5400+30:1800+30"]

1. e4 {[%emt 0:00:01]} c6 {[%emt 0:00:04]} 2. Nf3 {[%emt 0:00:07]} d5 {[%emt 0:00:07]} 3. Nc3 {[%emt 0:00:19]} Nf6 {[%emt 0:00:07]} 4. e5 {[%emt 0:01:00]} Ne4 {[%emt 0:00:12]} 5. Be2 {[%emt 0:01:20]} Nxc3 {[%emt 0:00:10]} 6. bxc3 {[%emt 0:02:11]} c5 {[%emt 0:00:14]} 7. d4 {[%emt 0:01:26]} Nc6 {[%emt 0:02:55]} 8. O-O {[%emt 0:02:18]} Bg4 {[%emt 0:05:22]} 9. Be3 {[%emt 0:08:49]} e6 {[%emt 0:05:27]} 10. Nd2 {[%emt 0:13:17]} Bxe2 {[%emt 0:01:11]} 11. Qxe2 {[%emt 0:00:14]} Qa5 {[%emt 0:02:28]} 12. Nb1 {[%emt 0:12:58]} Qa4 {[%emt 0:03:12]} (12... Be7 $17) 13. Nd2 {[%emt 0:08:58]} Be7 {[%emt 0:03:31]} 14. Rfb1 {[%emt 0:02:08]} Rb8 {[%emt 0:01:47]} 15. Nf3 {[%emt 0:03:17]} O-O {[%emt 0:01:31]} 16. h4 {[%emt 0:02:12]} cxd4 {[%emt 0:02:49]} 17. cxd4 {[%emt 0:00:34]} Na5 {[%emt 0:02:43]} 18. Rd1 {[%emt 0:02:47]} Rfc8 {[%emt 0:02:49]} 19. Rdc1 {[%emt 0:03:27]} (19. Ne1 $17 {was necessary.}) 19... Ba3 {[%emt 0:00:44]} 20. Rd1 {[%emt 0:01:46]} Rxc2 {[%emt 0:01:44]} 21. Rd2 {[%emt 0:00:25]} Rbc8 {[%emt 0:01:28]} 22. h5 {[%emt 0:02:44]} Qc4 {[%emt 0:02:38]} 23. Rxc2 {[%emt 0:00:50]} Qxc2 {[%emt 0:00:14]} 24. Qxc2 {[%emt 0:00:09]} Rxc2 {[%emt 0:00:06]} 25. Ne1 {[%emt 0:00:46]} Rc6 {[%emt 0:01:41]} 26. Rb1 b6 {[%emt 0:01:46]} 27. Nd3 {[%emt 0:05:02]} Rc2 {[%emt 0:01:49]} 28. Ra1 {[%emt 0:02:58]} Nc4 {[%emt 0:01:09]} 29. Bc1 {[%emt 0:01:27]} Rc3 {[%emt 0:02:15]} 30. Bxa3 {[%emt 0:00:52]} Rxd3 {[%emt 0:00:15]} 31. Bb4 {[%emt 0:01:01]} Rxd4 {[%emt 0:00:30]} 32. Rc1 {[%emt 0:00:24]} h6 {[%emt 0:00:55]} 33. Bd6 {[%emt 0:00:19]} Rd2 {[%emt 0:00:15]} 34. a3 {[%emt 0:00:40]} Ra2 {[%emt 0:00:22]} 35. Rc3 {[%emt 0:00:30]} b5 {[%emt 0:00:39]} 36. f4 {[%emt 0:01:01]} a6 {[%emt 0:00:39]} 37. Bc5 {[%emt 0:02:11]} Rb2 {[%emt 0:00:48]} 38. g4 {[%emt 0:02:25]} a5 {[%emt 0:00:31]} 39. Bd4 {[%emt 0:01:20]} Rb1+ {[%emt 0:00:44]} 40. Kf2 {[%emt 0:00:00]} b4 {[%emt 0:00:00]} 41. axb4 {[%emt 0:00:42]} axb4 {[%emt 0:00:41]} 42. Rd3 {[%emt 0:01:24]} b3 $19 {[%emt 0:00:58]} 43. Ke2 {[%emt 0:00:24]} b2 {[%emt 0:00:22]} 44. Rb3 {[%emt 0:01:15]} Rh1 {[%emt 0:00:16]} 45. Bxb2 {[%emt 0:00:48]} Rh2+ {[%emt 0:00:10]} 46. Kd3 {[%emt 0:00:16]} Rxb2 {[%emt 0:00:09]} 47. Rxb2 {[%emt 0:00:07]} Nxb2+ {[%emt 0:00:05]} 48. Kd4 {[%emt 0:00:06]} Nd1 {[%emt 0:00:31]} 0-1

[Event "Polish Youth Ekstraliga 2022"]
[Site "Lublin"]
[Date "2022.06.28"]
[Round "4.7"]
[White "Niedbala, Bartlomiej"]
[Black "Czernek, Tymon"]
[Result "1-0"]
[ECO "B96"]
[WhiteElo "2384"]
[BlackElo "2199"]
[Annotator "TA"]
[PlyCount "117"]
[EventDate "2022.06.24"]
[EventType "team-tourn"]
[EventCountry "POL"]
[SourceTitle "playchess.com"]
[Source "ChessBase"]
[SourceQuality "1"]
[TimeControl "40/5400+30:1800+30"]

{[%evp 16,117,15,23,26,21,20,18,9,12,23,-1,45,44,47,47,33,40,44,26,95,45,41,8,8,8,8,10,18,19,104,107,192,186,170,200,199,189,171,172,196,210,212,192,253,236,349,325,294,262,345,343,686,679,2098,670,1099,763,620,529,535,525,765,753,666,611,624,580,12795,12798,12782,12705,29947,12647,12841,12735,12135,12569,7065,5635,4377,2770,1718,1303,1212,1187,12847,12849,1224,1035,29960,29963,29963,29964,29978,29974,29985,29986,29986,29985,29990,29991,29991,29992]} 1. e4 {[%emt 0:01:23]} c5 {[%emt 0:00:05]} 2. Nf3 {[%emt 0:00:08]} d6 {[%emt 0:00:03]} 3. d4 {[%emt 0:00:05]} cxd4 {[%emt 0:00:03]} 4. Nxd4 {[%emt 0:00:05]} Nf6 {[%emt 0:00:05]} 5. Nc3 {[%emt 0:00:03]} a6 {[%emt 0:00:03]} 6. Bg5 {[%emt 0:00:03]} e6 {[%emt 0:00:14]} 7. f4 {[%emt 0:00:05]} h6 {[%emt 0:00:13]} 8. Bh4 {[%emt 0:00:02]} Qb6 {[%emt 0:00:22]} 9. a3 {[%emt 0:00:09]} Nc6 {[%emt 0:00:48] B96: Sicilian Najdorf: 6 Bg5 e6 7 f4, lines other than 7...Qb6 and 7...Be7.} (9... Qxb2 $2 10. Na4 Qxa1 11. Qxa1 $18) 10. Bf2 {[%emt 0:00:34][%cal Od4e6] And now Nxe6! would win.} Qc7 {[%emt 0:00:25]} (10... Qxb2 $2 11. Na4 Qxa1 12. Qxa1 $18) 11. Qf3 {[%emt 0:00:08]} Be7 {[%emt 0:05:36] The position is equal.} 12. O-O-O {[%emt 0:01:35]} Bd7 {[%emt 0:14:39]} 13. g4 {[%emt 0:14:38]} g5 {[%emt 0:05:25]} (13... Nxd4 $11 {feels stronger.} 14. Rxd4 Bc6) 14. h4 {[%emt 0:06:38]} gxf4 {[%emt 0:03:45]} 15. Nxc6 {[%emt 0:03:27]} (15. Qxf4 $2 e5 16. Qd2 Nxd4 $19) 15... Bxc6 {[%emt 0:06:48]} 16. Qxf4 {[%emt 0:12:23] [#]} Nd7 $146 {[%emt 0:06:00]} ({Predecessor:} 16... O-O-O 17. Bg3 Rdg8 18. Bh3 Rh7 19. Rhf1 Rhg7 20. Rd3 Nxg4 21. Nd5 exd5 22. exd5 Bxd5 23. Rxd5 Kb8 24. Be1 Ne5 25. Bc3 Rg3 26. Bf5 Rxc3 27. bxc3 Qxc3 28. Qd4 {½-½ (28) Smyslov,V-Benko,P Bled/Zagreb/Belgrade 1959}) 17. Kb1 {[%emt 0:03:13]} Ne5 {[%emt 0:07:01]} (17... Rb8 $11) 18. Rh3 {[%emt 0:03:37]} ({Better is} 18. Bd4 $16) 18... b5 $14 {[%emt 0:14:02]} 19. g5 {[%emt 0:10:15]} hxg5 {[%emt 0:07:23]} 20. hxg5 {[%emt 0:00:13]} Rxh3 {[%emt 0:01:05]} 21. Bxh3 {[%emt 0:00:05] Black should prevent Bd4.} Ng6 {[%emt 0:00:32]} 22. Qf3 {[%emt 0:05:38] Black must now prevent Bg3.} Qb7 {[%emt 0:01:49]} (22... a5 $11 {remains equal.}) 23. Bd4 $16 {[%emt 0:10:03] White is more active. Black is on the road to losing.} a5 {[%emt 0:13:17]} (23... Bxg5 $16 24. Rg1 e5 25. Rxg5 exd4) 24. Rf1 $1 $18 {[%emt 0:01:55]} Bxg5 {[%emt 0:05:09]} 25. Qh5 {[%emt 0:13:47]} Qe7 {[%emt 0:01:24] [#]} 26. Bxe6 $1 {[%emt 0:00:28][%mdl 576] Deflection} Qxe6 {[%emt 0:00:19]} (26... fxe6 $2 27. Qxg6+ Kd8 28. Rf6 $1 $18 {[%mdl 512]}) 27. Qxg5 {[%emt 0:00:01] Hoping for Nd5.} b4 {[%emt 0:03:09] [#]} 28. Nb5 {[%emt 0:06:26]} Bxb5 {[%emt 0:01:02]} 29. Qxb5+ {[%emt 0:00:09]} Kf8 {[%emt 0:00:07]} (29... Qd7 $142 30. Qd5 Rc8) 30. Qb7 {[%emt 0:03:00]} Re8 {[%emt 0:01:11]} (30... Rd8 {was worth a try.} 31. axb4 axb4 32. Qxb4 Ne5) 31. axb4 {[%emt 0:02:19]} axb4 {[%emt 0:00:40]} 32. Qxb4 {[%emt 0:00:02]} Kg8 {[%emt 0:00:51]} 33. Bc3 {[%emt 0:00:31]} Qxe4 $2 {[%emt 0:01:06]} (33... Ne5 34. Qb6 Kg7) 34. Qxd6 {[%emt 0:00:18]} ({Less strong is} 34. Qb3 Qe6 35. Qb7 Ne5 $18) 34... Qh4 {[%emt 0:01:03]} 35. Qc6 {[%emt 0:00:27]} (35. Qd5 $142 Qe7 36. Rf6) 35... Rd8 {[%emt 0:01:00]} 36. Bf6 {[%emt 0:01:21]} Qh3 {[%emt 0:00:04]} 37. Rh1 {[%emt 0:00:01]} ({Not} 37. Bxd8 Qxf1+ 38. Ka2 Qf2 $18) 37... Rc8 {[%emt 0:00:26]} 38. Qd5 {[%emt 0:01:01]} ({Weaker is} 38. Rxh3 Rxc6 39. Rf3 Nf8 $18) 38... Qe6 {[%emt 0:00:56]} 39. Qg5 {[%emt 0:00:54][%csl Gf6][%cal Rh1h8]} Kf8 {[%emt 0:00:01]} 40. Bc3 {[%emt 0:00:00]} Rxc3 {[%emt 0:00:00]} 41. Qd8+ {[%emt 0:04:12]} Qe8 {[%emt 0:02:13]} 42. Qxe8+ {[%emt 0:00:24]} Kxe8 {[%emt 0:00:02]} 43. bxc3 {[%emt 0:00:01][%mdl 4096] Endgame KR-KN} Kd7 {[%emt 0:01:04]} 44. Kc1 {[%emt 0:00:25]} (44. Kb2 $142 Ke6 45. c4 Ne7 46. Re1+ Kd7 47. Kb3 f5 48. Kc3 Ng6 49. Kd4) 44... Ne5 {[%emt 0:00:10]} 45. Kd2 {[%emt 0:00:22] White wants to mate with Ke3.} Kd6 {[%emt 0:00:53]} 46. Rf1 {[%emt 0:01:53]} Kd5 {[%emt 0:01:01]} 47. Rf4 {[%emt 0:00:10]} Nc4+ {[%emt 0:00:36]} 48. Ke2 {[%emt 0:00:18]} Nd6 {[%emt 0:00:04]} 49. Rf1 {[%emt 0:05:16]} Ke4 {[%emt 0:00:55]} 50. Ra1 {[%emt 0:03:12]} f5 {[%emt 0:01:07]} 51. Ra4+ {[%emt 0:00:06]} Kd5 {[%emt 0:00:26]} 52. Kd3 {[%emt 0:00:27] Threatening mate with Ra5+.} Ne4 {[%emt 0:00:30]} 53. c4+ {[%emt 0:01:17][%cal Bc3c4,Bc4c5,Bc5c6,Bc6c7][%mdl 32] White mates.} Ke5 {[%emt 0:00:32]} 54. Ra5+ {[%emt 0:00:31]} Kf4 {[%emt 0:00:06]} 55. c5 {[%emt 0:00:22]} Kg4 {[%emt 0:00:26]} 56. c6 {[%emt 0:01:17]} Nd6 {[%emt 0:00:05]} 57. c7 {[%emt 0:00:15]} f4 {[%emt 0:00:06]} 58. Rd5 {[%emt 0:00:01]} Nc8 {[%emt 0:00:07]} 59. Rd8 {[%emt 0:00:05] Weighted Error Value: White=0.20 (precise) /Black=0.67} 1-0

[Event "Polish Youth Ekstraliga 2022"]
[Site "Lublin"]
[Date "2022.06.28"]
[Round "4.8"]
[White "Chyzy, Jakub"]
[Black "Redzisz, Michal"]
[Result "1/2-1/2"]
[ECO "B11"]
[WhiteElo "2191"]
[BlackElo "2236"]
[Annotator "RC"]
[PlyCount "100"]
[EventDate "2022.06.24"]
[EventType "team-tourn"]
[EventCountry "POL"]
[SourceTitle "playchess.com"]
[Source "ChessBase"]
[SourceQuality "1"]
[TimeControl "40/5400+30:1800+30"]

1. e4 {[%emt 0:03:26]} c6 {[%emt 0:00:03]} 2. Nf3 {[%emt 0:00:10]} d5 {[%emt 0:00:06]} 3. Nc3 {[%emt 0:00:02]} Bg4 {[%emt 0:00:05]} 4. h3 {[%emt 0:00:10]} Bxf3 {[%emt 0:00:05]} 5. Qxf3 {[%emt 0:00:02]} e6 {[%emt 0:00:05]} 6. Be2 {[%emt 0:00:21]} Nd7 {[%emt 0:00:32]} 7. O-O {[%emt 0:00:35]} g6 {[%emt 0:00:04]} 8. d4 {[%emt 0:01:47]} Bg7 {[%emt 0:00:50]} 9. Be3 {[%emt 0:13:39]} Ne7 {[%emt 0:00:24]} 10. Rad1 {[%emt 0:14:00]} O-O {[%emt 0:01:02]} 11. Nb1 {[%emt 0:09:08]} f5 {[%emt 0:13:26]} 12. e5 {[%emt 0:00:25]} c5 {[%emt 0:06:41]} 13. c3 {[%emt 0:00:13]} Nc6 {[%emt 0:29:50]} 14. Qg3 {[%emt 0:03:29]} Qb6 {[%emt 0:01:48]} 15. Rd2 {[%emt 0:00:40]} cxd4 {[%emt 0:02:39]} 16. cxd4 {[%emt 0:00:31]} f4 {[%emt 0:02:30]} 17. Bxf4 {[%emt 0:00:32]} Nxd4 {[%emt 0:00:03]} 18. Nc3 {[%emt 0:06:36]} Nf5 {[%emt 0:01:36]} 19. Qh2 {[%emt 0:01:50]} h6 {[%emt 0:10:56]} 20. h4 {[%emt 0:04:07]} Qd8 {[%emt 0:00:03]} 21. Bg4 {[%emt 0:04:18]} h5 {[%emt 0:00:29]} 22. Bxf5 {[%emt 0:08:50]} Rxf5 {[%emt 0:00:06]} 23. Re1 {[%emt 0:00:26]} Qf8 {[%emt 0:10:16]} 24. Bg3 {[%emt 0:03:38]} Rc8 {[%emt 0:01:00]} 25. f4 {[%emt 0:00:43]} Bh6 {[%emt 0:05:47]} 26. Rf2 Rc4 {[%emt 0:02:15]} 27. Ref1 {[%emt 0:06:20]} Qb4 {[%emt 0:04:46]} 28. a3 {[%emt 0:01:32]} Qb6 {[%emt 0:00:04]} 29. Kh1 Nc5 {[%emt 0:00:35]} 30. Rf3 {[%emt 0:03:43]} d4 {[%emt 0:04:01]} 31. Nd1 {[%emt 0:00:41]} Ne4 {[%emt 0:00:33]} 32. Re1 {[%emt 0:09:09]} Qc6 {[%emt 0:02:35]} 33. Bf2 {[%emt 0:01:51]} Nd2 {[%emt 0:00:57]} 34. Rd3 {[%emt 0:00:43]} Bxf4 {[%emt 0:00:04]} 35. Qh3 {[%emt 0:01:24]} Ne4 {[%emt 0:00:48]} 36. Bxd4 {[%emt 0:00:12]} Rxd4 {[%emt 0:00:52]} 37. Rxd4 {[%emt 0:00:11]} Ng3+ {[%emt 0:00:01]} 38. Kh2 {[%emt 0:00:12]} Ne2+ {[%emt 0:01:00]} 39. Rxf4 {[%emt 0:00:01]} Nxf4 {[%emt 0:00:03]} 40. Qg3 {[%emt 0:00:00]} Rf7 {[%emt 0:00:00]} 41. Nc3 {[%emt 0:02:01]} Kg7 {[%emt 0:03:44]} 42. Ne4 {[%emt 0:06:05]} Nd5 {[%emt 0:00:12]} 43. Nd6 {[%emt 0:02:59]} Rf4 {[%emt 0:04:47]} 44. Re4 {[%emt 0:02:00]} Rxe4 {[%emt 0:04:19]} 45. Nxe4 {[%emt 0:00:07]} Qc2 {[%emt 0:03:18]} 46. Ng5 {[%emt 0:09:52]} Qf5 {[%emt 0:00:10]} 47. Kg1 {[%emt 0:04:43]} Qb1+ {[%emt 0:03:27]} 48. Kh2 {[%emt 0:00:11]} Qf5 {[%emt 0:00:40]} 49. Kg1 {[%emt 0:05:29]} Qb1+ {[%emt 0:02:30]} 50. Kh2 {[%emt 0:00:05]} Qf5 1/2-1/2

[Event "Polish Youth Ekstraliga 2022"]
[Site "Lublin"]
[Date "2022.06.28"]
[Round "4.9"]
[White "Warchol, Kamil"]
[Black "Krawczyk, Flawian"]
[Result "1/2-1/2"]
[ECO "A05"]
[WhiteElo "2079"]
[BlackElo "2212"]
[Annotator "RC"]
[PlyCount "98"]
[EventDate "2022.06.24"]
[EventType "team-tourn"]
[EventCountry "POL"]
[SourceTitle "playchess.com"]
[Source "ChessBase"]
[SourceQuality "1"]
[TimeControl "40/5400+30:1800+30"]

1. Nf3 {[%emt 0:00:03]} Nf6 {[%emt 0:00:48]} 2. b3 {[%emt 0:00:14]} e6 {[%emt 0:02:17]} 3. Bb2 {[%emt 0:01:04]} Be7 {[%emt 0:00:06]} 4. c4 {[%emt 0:00:38]} b6 {[%emt 0:00:12]} 5. g3 {[%emt 0:01:19]} Bb7 {[%emt 0:00:06]} 6. Bg2 {[%emt 0:00:04]} O-O {[%emt 0:00:12]} 7. O-O {[%emt 0:00:46]} d5 {[%emt 0:00:35]} 8. d4 {[%emt 0:06:38]} Ne4 {[%emt 0:05:41]} 9. Nbd2 {[%emt 0:13:16]} Nd7 {[%emt 0:02:49]} 10. Rc1 {[%emt 0:05:19]} f5 {[%emt 0:04:48]} 11. e3 {[%emt 0:04:53]} Rc8 {[%emt 0:03:38]} 12. Qe2 {[%emt 0:05:01]} Qe8 {[%emt 0:04:10]} 13. a3 {[%emt 0:11:22]} a5 {[%emt 0:12:14]} 14. Rfe1 {[%emt 0:03:02]} c6 {[%emt 0:07:19]} 15. Nf1 {[%emt 0:07:17]} Ba6 {[%emt 0:02:37]} 16. Qd1 {[%emt 0:01:45]} g5 {[%emt 0:04:47]} 17. N3d2 {[%emt 0:03:14]} Nef6 {[%emt 0:06:59]} 18. f3 {[%emt 0:11:31]} Qf7 {[%emt 0:04:21]} 19. Qe2 {[%emt 0:01:23]} Rfe8 {[%emt 0:01:46]} 20. e4 {[%emt 0:02:23]} g4 {[%emt 0:04:32]} 21. exf5 {[%emt 0:03:46]} exf5 {[%emt 0:00:11]} 22. Qe6 {[%emt 0:01:28]} Qxe6 {[%emt 0:02:11]} 23. Rxe6 {[%emt 0:00:04]} Kf7 {[%emt 0:01:12]} 24. Ree1 {[%emt 0:00:58]} gxf3 {[%emt 0:14:14]} 25. Bxf3 {[%emt 0:00:23]} Bf8 {[%emt 0:00:58]} 26. Ne3 {[%emt 0:09:11]} Bh6 {[%emt 0:02:41]} 27. Ndf1 {[%emt 0:00:03]} Kg6 {[%emt 0:01:24]} 28. Rcd1 {[%emt 0:01:27]} Nf8 {[%emt 0:06:15]} 29. g4 {[%emt 0:01:07]} fxg4 {[%emt 0:00:55]} 30. Nxg4 {[%emt 0:00:11]} Nxg4 {[%emt 0:00:50]} 31. Bxg4 {[%emt 0:00:02]} Rcd8 32. cxd5 {[%emt 0:02:16]} Rxe1 {[%emt 0:02:24]} 33. Rxe1 {[%emt 0:00:02]} Rxd5 {[%emt 0:00:01]} 34. Re5 {[%emt 0:00:18]} Bf4 {[%emt 0:02:57]} 35. Re4 {[%emt 0:02:40]} Bd6 {[%emt 0:00:31]} 36. Ne3 {[%emt 0:00:37]} Rb5 {[%emt 0:00:29]} 37. Bd1 {[%emt 0:00:37]} Rg5+ {[%emt 0:00:28]} 38. Kh1 {[%emt 0:00:35]} Bd3 {[%emt 0:00:23]} 39. Rg4 {[%emt 0:01:09]} Rxg4 {[%emt 0:00:39]} 40. Bxg4 {[%emt 0:00:00]} Bf4 {[%emt 0:00:00]} 41. Nc4 {[%emt 0:01:13]} Be4+ {[%emt 0:03:12]} 42. Kg1 {[%emt 0:01:24]} Kg5 {[%emt 0:02:54]} 43. Be2 {[%emt 0:01:11]} b5 {[%emt 0:09:07]} 44. Nxa5 {[%emt 0:05:59]} Be3+ {[%emt 0:00:04]} 45. Kf1 {[%emt 0:00:11]} Ne6 {[%emt 0:00:17]} 46. a4 {[%emt 0:03:56]} Nxd4 {[%emt 0:02:29]} 47. Bxd4 {[%emt 0:01:53]} Bxd4 {[%emt 0:00:09]} 48. axb5 {[%emt 0:00:08]} cxb5 {[%emt 0:00:04]} 49. Bxb5 {[%emt 0:00:07]} Bc3 {[%emt 0:01:18]} 1/2-1/2

[Event "Polish Youth Ekstraliga 2022"]
[Site "Lublin"]
[Date "2022.06.28"]
[Round "4.10"]
[White "Sowinski, Pawel"]
[Black "Krol, Jan"]
[Result "1-0"]
[ECO "B76"]
[WhiteElo "2060"]
[BlackElo "1668"]
[Annotator "NA RC"]
[PlyCount "105"]
[EventDate "2022.06.24"]
[EventType "team-tourn"]
[EventCountry "POL"]
[SourceTitle "playchess.com"]
[Source "ChessBase"]
[SourceQuality "1"]
[TimeControl "40/5400+30:1800+30"]

1. e4 {[%emt 0:02:51]} c5 {[%emt 0:00:35]} 2. Nf3 {[%emt 0:00:01]} d6 {[%emt 0:03:24]} 3. d4 {[%emt 0:00:02]} cxd4 {[%emt 0:00:01]} 4. Nxd4 {[%emt 0:00:01]} Nf6 {[%emt 0:00:05]} 5. Nc3 {[%emt 0:00:04]} g6 {[%emt 0:00:22]} 6. Be3 {[%emt 0:01:36]} Bg7 {[%emt 0:00:05]} 7. f3 {[%emt 0:03:51]} Nc6 {[%emt 0:02:37]} 8. Qd2 {[%emt 0:02:07]} O-O {[%emt 0:00:17]} 9. O-O-O {[%emt 0:01:40]} d5 {[%emt 0:01:34]} 10. Be2 {[%emt 0:08:46]} e5 {[%emt 0:08:14]} (10... Nxd4 $11 {keeps the balance.} 11. Bxd4 dxe4) 11. Nxc6 {[%emt 0:00:44]} bxc6 {[%emt 0:00:01]} 12. exd5 {[%emt 0:04:29]} cxd5 {[%emt 0:00:54]} 13. Nxd5 {[%emt 0:00:54]} Nxd5 {[%emt 0:00:01]} 14. Qxd5 {[%emt 0:00:02]} Qc7 {[%emt 0:00:01]} 15. Qd6 {[%emt 0:18:59]} Qb7 {[%emt 0:01:48]} 16. Bc4 {[%emt 0:04:41]} Rb8 {[%emt 0:06:31]} 17. b3 {[%emt 0:00:06]} Bf5 {[%emt 0:04:58]} 18. Ba6 {[%emt 0:10:51]} Qa8 {[%emt 0:05:59]} 19. Qd5 {[%emt 0:00:05]} Rbc8 {[%emt 0:00:05]} 20. c4 {[%emt 0:05:43]} Qb8 {[%emt 0:10:24]} 21. Qb7 {[%emt 0:01:21]} Rc7 {[%emt 0:00:23]} 22. Qxb8 {[%emt 0:03:08]} Rxb8 {[%emt 0:00:02]} 23. Rd2 {[%emt 0:03:59]} Rc6 {[%emt 0:12:04]} 24. Rhd1 {[%emt 0:00:17]} Bf8 {[%emt 0:09:52] [#]} 25. Rd8 $18 {[%emt 0:01:16]} ({Avoid the trap} 25. Bxa7 $2 Ba3+ 26. Rb2 Rb4 $19) 25... Rxd8 {[%emt 0:00:41]} 26. Rxd8 {[%emt 0:00:05]} Kg7 {[%emt 0:00:16]} 27. Bb5 {[%emt 0:02:11]} Ba3+ {[%emt 0:00:21]} 28. Kd1 {[%emt 0:00:02]} Re6 {[%emt 0:01:55]} 29. Bxa7 {[%emt 0:01:27]} e4 {[%emt 0:08:34]} 30. Bd4+ {[%emt 0:02:06]} f6 {[%emt 0:00:41]} 31. g4 {[%emt 0:00:09]} e3 {[%emt 0:00:15]} 32. Ke2 {[%emt 0:01:24]} Bd3+ {[%emt 0:00:40]} 33. Kxd3 {[%emt 0:00:10]} e2 {[%emt 0:00:03]} 34. Bc3 {[%emt 0:00:56]} e1=Q {[%emt 0:01:04]} 35. Bxe1 {[%emt 0:00:02]} Rxe1 {[%emt 0:00:02]} 36. Ra8 {[%emt 0:00:20]} Bb4 {[%emt 0:00:34]} 37. Ra4 {[%emt 0:01:15]} Bd6 {[%emt 0:01:53]} 38. b4 {[%emt 0:00:54]} h5 {[%emt 0:02:29]} 39. gxh5 {[%emt 0:00:38]} gxh5 {[%emt 0:00:01]} 40. h3 {[%emt 0:00:00]} Bf4 {[%emt 0:00:00]} 41. c5 {[%emt 0:02:26]} Rh1 {[%emt 0:02:06]} 42. Ke4 {[%emt 0:00:26]} Be5 {[%emt 0:00:07]} 43. f4 {[%emt 0:00:42]} Re1+ {[%emt 0:00:10]} 44. Kf3 {[%emt 0:00:02]} Bd4 {[%emt 0:00:12]} 45. c6 {[%emt 0:02:28]} Re3+ {[%emt 0:00:13]} 46. Kg2 {[%emt 0:00:01]} Rc3 {[%emt 0:00:09]} 47. Ra8 {[%emt 0:00:31]} Kf7 {[%emt 0:00:28]} 48. Rd8 {[%emt 0:01:59]} Rc2+ {[%emt 0:01:53]} 49. Kf3 {[%emt 0:00:49]} Bg1 {[%emt 0:01:00]} 50. Rd7+ {[%emt 0:01:16]} Ke6 {[%emt 0:00:58]} 51. Ke4 {[%emt 0:00:06]} f5+ {[%emt 0:01:16]} 52. Kd3 {[%emt 0:00:01]} Rc1 {[%emt 0:02:25]} 53. Kd2 {[%emt 0:00:04]} 1-0